[Event "FIDE Grand Swiss 2023"]
[Site "Villa Marina, Douglas, Isle of Man"]
[Date "2023.11.02"]
[Round "8.54"]
[White "Sanal, Vahap"]
[Black "Kozak, Adam"]
[Result "1/2-1/2"]
[WhiteElo "2603"]
[BlackElo "2566"]
[EventDate "2023.10.25"]
[ECO "C65"]
[PlyCount "153"]
[BlackFideId "753246"]
[TimeControl "40/100 + 20/50 + 15 + 30s/move"]
[WhiteFideId "6300545"]

1.e4 {[%clk 01:40:58]} 1...e5 {[%clk 01:40:54][%emt 00:00:08]} 2.Nf3 {[%clk
01:41:21][%emt 00:00:06]} 2...Nc6 {[%clk 01:41:20][%emt 00:00:05]} 3.Bb5 {[%clk
01:41:09][%emt 00:00:42]} 3...Nf6 {[%clk 01:41:28][%emt 00:00:22]} 4.d3 {[%clk
01:41:30][%emt 00:00:08]} 4...Bc5 {[%clk 01:40:56][%emt 00:01:02]} 5.O-O {[%clk
01:41:48][%emt 00:00:11]} 5...Nd4 {[%clk 01:40:21][%emt 00:01:07]} 6.Nxd4 
{[%clk 01:42:06][%emt 00:00:11]} 6...Bxd4 {[%clk 01:40:47][%emt 00:00:05]} 7.c3 
{[%clk 01:42:28][%emt 00:00:07]} 7...Bb6 {[%clk 01:41:04][%emt 00:00:14]} 8.Na3 
{[%clk 01:42:48][%emt 00:00:08]} 8...c6 {[%clk 01:40:12][%emt 00:01:23]} 9.Ba4 
{[%clk 01:41:37][%emt 00:01:41]} 9...d6 {[%clk 01:40:20][%emt 00:00:23]} 10.Bc2 
{[%clk 01:42:01][%emt 00:00:05]} 10...Be6 {[%clk 01:38:52][%emt 00:01:59]} 
11.Nc4 {[%clk 01:38:57][%emt 00:03:33]} 11...Bc7 {[%clk 01:38:46][%emt
00:00:36]} 12.Qe2 {[%clk 01:36:23][%emt 00:03:02]} 12...b5 {[%clk 01:24:49][%emt
00:14:30]} 13.Ne3 {[%clk 01:35:33][%emt 00:01:19]} 13...O-O {[%clk
01:25:06][%emt 00:00:13]} 14.d4 {[%clk 01:35:03][%emt 00:00:59]} 14...Re8 
{[%clk 01:19:18][%emt 00:06:19]} 15.Rd1 {[%clk 01:26:48][%emt 00:08:43]} 
15...d5 {[%clk 01:04:17][%emt 00:15:33]} 16.exd5 {[%clk 01:24:39][%emt
00:02:38]} 16...Bxd5 {[%clk 00:53:38][%emt 00:11:10]} 17.Nxd5 {[%clk
01:23:13][%emt 00:01:56]} 17...Nxd5 {[%clk 00:53:43][%emt 00:00:24]} 18.dxe5 
{[%clk 01:22:27][%emt 00:01:16]} 18...Bxe5 {[%clk 00:51:02][%emt 00:03:12]} 
19.Qf3 {[%clk 01:20:56][%emt 00:01:55]} 19...Qf6 {[%clk 00:50:46][%emt
00:00:52]} 20.Qxf6 {[%clk 01:19:37][%emt 00:01:49]} 20...Bxf6 {[%clk
00:51:08][%emt 00:00:08]} 21.Bd2 {[%clk 01:10:37][%emt 00:09:29]} 21...a5 
{[%clk 00:34:45][%emt 00:16:54]} 22.Rac1 {[%clk 00:51:37][%emt 00:19:29]} 
22...g6 {[%clk 00:20:14][%emt 00:15:01]} 23.g3 {[%clk 00:43:47] [%emt 00:08:20]} 
23...Nb6 {[%clk 00:09:08] [%emt 00:11:36]} 24.Bf4 {[%clk 00:29:26][%emt
00:14:51]} 24...Nd5 {[%clk 00:07:42][%emt 00:01:57]} 25.Bd2 {[%clk
00:43:47][%emt 00:08:20]} 25...Nb6 {[%clk 00:09:08][%emt 00:11:36]} 26.b3 
{[%clk 00:18:18][%emt 00:10:28]} ( 26.b3 {[%clk 00:18:18][%emt 00:10:28]} 
26...a4 {[%clk 00:08:04][%emt 00:00:33]} 27.Kf1 {[%clk 00:17:20][%emt 00:01:27]} 
27...axb3 {[%clk 00:06:07][%emt 00:02:28]} 28.Bxb3 {[%clk 00:17:25][%emt
00:00:24]} 28...Na4 {[%clk 00:03:54][%emt 00:02:44]} 29.Be3 {[%clk
00:14:44][%emt 00:03:10]} 29...Nxc3 {[%clk 00:00:32][%emt 00:03:54]} 30.Rd6 
{[%clk 00:12:29][%emt 00:02:43]} 30...Be5 {[%clk 00:00:31] [%emt 00:00:33]} 
31.Rd7 {[%clk 00:12:07] [%emt 00:00:51]} ) 26...a4 {[%clk 00:08:04][%emt
00:00:33]} 27.Kf1 {[%clk 00:17:20][%emt 00:01:27]} 27...axb3 {[%clk
00:06:07][%emt 00:02:28]} 28.Bxb3 {[%clk 00:17:25][%emt 00:00:24]} 28...Na4 
{[%clk 00:03:54][%emt 00:02:44]} 29.Be3 {[%clk 00:14:44][%emt 00:03:10]} 
29...Nxc3 {[%clk 00:00:32][%emt 00:03:54]} 30.Rd6 {[%clk 00:12:29][%emt
00:02:43]} 30...Be5 {[%clk 00:00:31][%emt 00:00:33]} 31.Rd7 {[%clk
00:12:07][%emt 00:00:51]} 31...Nd5 {[%clk 00:00:34][%emt 00:00:27]} 32.Bg5 
{[%clk 00:07:49] [%emt 00:04:48]} 32...Ra6 {[%clk 00:00:31] [%emt 00:00:33]} 
33.Re1 {[%clk 00:07:49][%emt 00:00:29]} 33...Raa8 {[%clk 00:00:34][%emt
00:00:28]} 34.Rc1 {[%clk 00:07:49][%emt 00:04:48]} 34...Ra6 {[%clk
00:00:31][%emt 00:00:33]} 35.Rxc6 {[%clk 00:02:14][%emt 00:00:19]} 35...Rxc6 
{[%clk 00:01:08][%emt 00:00:05]} 36.Bxd5 {[%clk 00:02:40][%emt 00:00:03]} 
36...Ree6 {[%clk 00:00:39][%emt 00:00:59]} 37.Bh6 {[%clk 00:01:30][%emt
00:01:40]} 37...Rc8 {[%clk 00:00:32][%emt 00:00:38]} 38.Bxe6 {[%clk
00:01:52][%emt 00:00:07]} 38...fxe6 {[%clk 00:00:59][%emt 00:00:03]} 39.Rb7 
{[%clk 00:00:34][%emt 00:01:48]} 39...Bd4 {[%clk 00:00:31][%emt 00:00:59]} 
40.Rxb5 {[%clk 00:00:42][%emt 00:00:22]} 40...Rc2 {[%clk 00:00:33][%emt
00:00:29]} 41.Rb8+ {[%clk 00:42:41][%emt 00:08:30]} 41...Kf7 {[%clk
00:50:55][%emt 00:00:08]} 42.Rf8+ {[%clk 00:43:08][%emt 00:00:03]} 42...Ke7 
{[%clk 00:51:19][%emt 00:00:07]} 43.a3 {[%clk 00:43:13][%emt 00:00:25]} 
43...Ra2 {[%clk 00:41:44][%emt 00:10:04]} 44.Rf3 {[%clk 00:39:24][%emt
00:04:18]} 44...e5 {[%clk 00:40:17][%emt 00:01:58]} 45.g4 {[%clk 00:27:51][%emt
00:12:03]} 45...Ke6 {[%clk 00:38:01][%emt 00:02:46]} 46.Bg5 {[%clk
00:27:41][%emt 00:00:39]} 46...e4 {[%clk 00:22:45][%emt 00:15:47]} 47.Rf4 
{[%clk 00:25:07][%emt 00:03:03]} 47...Kd5 {[%clk 00:23:00][%emt 00:00:16]} 
48.Rf7 {[%clk 00:25:14][%emt 00:00:22]} 48...Rxa3 {[%clk 00:22:25][%emt
00:01:05]} 49.Rxh7 {[%clk 00:23:09][%emt 00:02:35]} 49...Rf3 {[%clk
00:21:28][%emt 00:01:27]} 50.Rd7+ {[%clk 00:22:08][%emt 00:01:32]} 50...Kc4 
{[%clk 00:18:31][%emt 00:03:28]} 51.Bh4 {[%clk 00:22:32][%emt 00:00:04]} 
51...e3 {[%clk 00:17:13][%emt 00:01:49]} 52.Bg3 {[%clk 00:20:15][%emt 00:02:46]} 
52...exf2 {[%clk 00:16:21][%emt 00:01:24]} 53.Re7 {[%clk 00:20:12][%emt
00:00:32]} 53...Kd3 {[%clk 00:12:41][%emt 00:04:10]} 54.Re2 {[%clk
00:20:23][%emt 00:00:19]} 54...Re3 {[%clk 00:12:50][%emt 00:00:21]} 55.Rxe3+ 
{[%clk 00:20:22][%emt 00:00:31]} 55...Bxe3 {[%clk 00:13:15][%emt 00:00:05]} 
56.Bxf2 {[%clk 00:20:49][%emt 00:00:02]} 56...Bf4 {[%clk 00:12:34][%emt
00:01:12]} 57.Kg2 {[%clk 00:21:17][%emt 00:00:02]} 57...Ke4 {[%clk
00:12:49][%emt 00:00:15]} 58.Bg3 {[%clk 00:21:30][%emt 00:00:16]} 58...Bg5 
{[%clk 00:13:07][%emt 00:00:12]} 59.h4 {[%clk 00:21:09][%emt 00:00:52]} 
59...Be7 {[%clk 00:13:29][%emt 00:00:08]} 60.Kh3 {[%clk 00:21:28][%emt
00:00:10]} 60...Bf8 {[%clk 00:12:53][%emt 00:01:07]} 61.Be1 {[%clk
00:21:48][%emt 00:00:09]} 61...Bd6 {[%clk 00:12:56][%emt 00:00:28]} 62.Bc3 
{[%clk 00:22:13][%emt 00:00:05]} 62...Be7 {[%clk 00:13:16][%emt 00:00:09]} 
63.Bb2 {[%clk 00:22:30][%emt 00:00:13]} 63...Bf8 {[%clk 00:13:30][%emt
00:00:17]} 64.Bf6 {[%clk 00:22:55][%emt 00:00:04]} 64...Bd6 {[%clk
00:13:40][%emt 00:00:20]} 65.Bg7 {[%clk 00:23:01][%emt 00:00:24]} 65...Be7 
{[%clk 00:14:01][%emt 00:00:10]} 66.Bh6 {[%clk 00:22:28][%emt 00:01:03]} 
66...Bd6 {[%clk 00:14:19][%emt 00:00:12]} 67.Bg5 {[%clk 00:22:51][%emt
00:00:07]} 67...Bf8 {[%clk 00:14:44][%emt 00:00:05]} 68.Kg2 {[%clk
00:23:18][%emt 00:00:03]} 68...Bd6 {[%clk 00:15:01][%emt 00:00:12]} 69.Kf2 
{[%clk 00:23:44][%emt 00:00:04]} 69...Bc5+ {[%clk 00:15:25][%emt 00:00:07]} 
70.Ke2 {[%clk 00:24:12][%emt 00:00:02]} 70...Bd6 {[%clk 00:15:48][%emt
00:00:07]} 71.h5 {[%clk 00:24:37][%emt 00:00:05]} 71...gxh5 {[%clk
00:16:12][%emt 00:00:06]} 72.gxh5 {[%clk 00:25:04][%emt 00:00:01]} 72...Kf5 
{[%clk 00:16:36][%emt 00:00:06]} 73.Be3 {[%clk 00:25:29][%emt 00:00:06]} 
73...Be7 {[%clk 00:16:45] [%emt 00:00:22]} 74.h6 {[%clk 00:25:55] [%emt
00:00:03]} 74...Kg6 {[%clk 00:17:10] [%emt 00:00:04]} 75.Kf3 {[%clk 00:26:24]
[%emt 00:00:02]} 75...Bf8 {[%clk 00:17:35] [%emt 00:00:05]} 76.Kg4 {[%clk
00:26:50] [%emt 00:00:04]} 76...Bxh6 {[%clk 00:18:02] [%emt 00:00:04]} 77.Bxh6 
{[%clk 00:27:14] [%emt 00:00:05]} 1/2-1/2

[Event "FIDE Grand Swiss 2023"]
[Site "Villa Marina, Douglas, Isle of Man"]
[Date "2023.11.02"]
[Round "8.57"]
[White "Krasenkow, Michal"]
[Black "Kolbus, Dietmar"]
[Result "1-0"]
[WhiteElo "2531"]
[BlackElo "2225"]
[EventDate "2023.10.25"]
[ECO "D10"]
[PlyCount "93"]
[BlackClock "00:36:07"]
[BlackFideId "4610628"]
[TimeControl "40/100 + 20/50 + 15 + 30s/move"]
[WhiteClock "01:22:45"]
[WhiteFideId "1113100"]

1.d4 {[%clk 01:40:56][%emt 00:00:04]} 1...d5 {[%clk 01:39:42][%emt 00:01:19]} 
2.c4 {[%clk 01:41:19][%emt 00:00:06]} 2...c6 {[%clk 01:40:07][%emt 00:00:05]} 
3.Nc3 {[%clk 01:41:41][%emt 00:00:09]} 3...Nf6 {[%clk 01:40:28][%emt 00:00:09]} 
4.e3 {[%clk 01:42:06][%emt 00:00:04]} 4...g6 {[%clk 01:35:46][%emt 00:05:13]} 
5.Nf3 {[%clk 01:41:56][%emt 00:00:40]} 5...Bg7 {[%clk 01:36:09][%emt 00:00:06]} 
6.Be2 {[%clk 01:38:01][%emt 00:04:25]} 6...O-O {[%clk 01:36:32][%emt 00:00:08]} 
7.O-O {[%clk 01:38:27][%emt 00:00:03]} 7...b6 {[%clk 01:25:26][%emt 00:11:36]} 
8.a4 {[%clk 01:35:25][%emt 00:03:32]} 8...Ba6 {[%clk 01:05:49][%emt 00:20:07]} 
9.b3 {[%clk 01:30:22][%emt 00:05:34]} 9...Ne4 {[%clk 01:04:19][%emt 00:01:59]} 
10.Bb2 {[%clk 01:28:48][%emt 00:02:05]} 10...Nxc3 {[%clk 01:03:48][%emt
00:01:01]} 11.Bxc3 {[%clk 01:29:16][%emt 00:00:02]} 11...Nd7 {[%clk
01:03:21][%emt 00:00:56]} 12.a5 {[%clk 01:22:00][%emt 00:07:46]} 12...dxc4 
{[%clk 00:57:58][%emt 00:05:53]} 13.bxc4 {[%clk 01:22:07][%emt 00:00:24]} 
13...c5 {[%clk 00:57:41][%emt 00:00:47]} 14.Qb3 {[%clk 01:14:04][%emt 00:08:33]} 
14...e6 {[%clk 00:57:04][%emt 00:01:06]} 15.Rfd1 {[%clk 01:13:04][%emt
00:01:30]} 15...Qc7 {[%clk 00:57:21][%emt 00:00:14]} 16.d5 {[%clk 01:12:22][%emt
00:01:12]} 16...Bxc3 {[%clk 00:53:11][%emt 00:04:39]} 17.Qxc3 {[%clk
01:12:33][%emt 00:00:19]} 17...exd5 {[%clk 00:49:00][%emt 00:04:41]} 18.Rxd5 
{[%clk 01:12:20][%emt 00:00:44]} 18...Bb7 {[%clk 00:43:49][%emt 00:05:41]} 
19.Rd2 {[%clk 01:11:55][%emt 00:00:55]} 19...Rfe8 {[%clk 00:39:03][%emt
00:05:15]} 20.h4 {[%clk 01:03:02][%emt 00:09:24]} 20...h5 {[%clk 00:34:11][%emt
00:05:22]} 21.Rad1 {[%clk 01:02:04][%emt 00:01:27]} 21...Re7 {[%clk
00:26:44][%emt 00:07:57]} 22.Rd6 {[%clk 00:58:10][%emt 00:04:23]} 22...Rae8 
{[%clk 00:23:32][%emt 00:03:41]} 23.axb6 {[%clk 00:58:21][%emt 00:00:22]} 
23...axb6 {[%clk 00:23:45][%emt 00:00:17]} 24.Ng5 {[%clk 00:58:36][%emt
00:00:14]} 24...Bc6 {[%clk 00:12:06][%emt 00:12:09]} 25.Bf3 {[%clk
00:50:44][%emt 00:08:22]} 25...Bxf3 {[%clk 00:11:48][%emt 00:00:49]} 26.gxf3 
{[%clk 00:51:04][%emt 00:00:09]} 26...Nf8 {[%clk 00:10:51][%emt 00:01:27]} 
27.Qf6 {[%clk 00:46:44][%emt 00:04:50]} 27...Nh7 {[%clk 00:09:47][%emt
00:01:34]} 28.Nxh7 {[%clk 00:45:21][%emt 00:01:54]} 28...Kxh7 {[%clk
00:09:49][%emt 00:00:27]} 29.Rxb6 {[%clk 00:44:31][%emt 00:01:21]} 29...Re6 
{[%clk 00:04:33][%emt 00:05:46]} 30.Rxe6 {[%clk 00:44:40][%emt 00:00:21]} 
30...Rxe6 {[%clk 00:04:57][%emt 00:00:05]} 31.Qd8 {[%clk 00:44:45][%emt
00:00:24]} 31...Qb7 {[%clk 00:03:58][%emt 00:01:27]} 32.Kg2 {[%clk
00:43:50][%emt 00:01:27]} 32...Kg7 {[%clk 00:03:21][%emt 00:01:07]} 33.Rd7 
{[%clk 00:43:12][%emt 00:01:09]} 33...Qc6 {[%clk 00:01:27][%emt 00:02:25]} 
34.Qc7 {[%clk 00:39:15][%emt 00:04:27]} 34...Qxc7 {[%clk 00:01:22][%emt
00:00:35]} 35.Rxc7 {[%clk 00:39:39][%emt 00:00:05]} 35...Re5 {[%clk
00:01:39][%emt 00:00:13]} 36.f4 {[%clk 00:39:59][%emt 00:00:10]} 36...Rf5 
{[%clk 00:02:00][%emt 00:00:08]} 37.Rc6 {[%clk 00:31:03][%emt 00:09:27]} 
37...Rf6 {[%clk 00:02:14][%emt 00:00:17]} 38.Rxf6 {[%clk 00:30:14][%emt
00:01:19]} 38...Kxf6 {[%clk 00:02:38][%emt 00:00:05]} 39.Kf3 {[%clk
00:30:38][%emt 00:00:06]} 39...Kf5 {[%clk 00:02:50][%emt 00:00:19]} 40.e4+ 
{[%clk 00:31:00][%emt 00:00:07]} 40...Ke6 {[%clk 00:02:57][%emt 00:00:23]} 
41.f5+ {[%clk 00:30:48][%emt 00:00:43]} 41...gxf5 {[%clk 00:02:57][%emt
00:00:30]} 42.Kf4 {[%clk 00:31:13][%emt 00:00:04]} 42...fxe4 {[%clk
00:03:06][%emt 00:00:21]} 43.Kxe4 {[%clk 00:31:39][%emt 00:00:05]} 43...f6 
{[%clk 00:01:54][%emt 00:01:42]} 44.Kf4 {[%clk 00:31:57][%emt 00:00:11]} 
44...f5 {[%clk 00:43:11][%emt 00:09:14]} 45.Kg5 {[%clk 01:21:58][%emt 00:00:28]} 
45...Ke5 {[%clk 00:43:22][%emt 00:00:19]} 46.Kxh5 {[%clk 01:22:24][%emt
00:00:05]} 46...Ke4 {[%clk 00:37:36][%emt 00:06:15]} 47.Kg5 {[%clk
01:22:45][%emt 00:00:09]} 1-0

[Event "FIDE Grand Swiss 2023"]
[Site "Villa Marina, Douglas, Isle of Man"]
[Date "2023.11.03"]
[Round "9.1"]
[White "Caruana, Fabiano"]
[Black "Deac, Bogdan-Daniel"]
[Result "1/2-1/2"]
[WhiteElo "2786"]
[BlackElo "2701"]
[EventDate "2023.10.25"]
[ECO "C54"]
[PlyCount "85"]
[BlackFideId "1226380"]
[TimeControl "40/100 + 20/50 + 15 + 30s/move"]
[WhiteFideId "2020009"]
[ePGN "0.1;DGT LiveChess/2.2.5"]

1.e4 {[%clk 01:40:54][%emt 00:00:06]} 1...e5 {[%clk 01:40:58][%emt 00:00:02]} 
2.Nf3 {[%clk 01:41:16][%emt 00:00:08]} 2...Nc6 {[%clk 01:41:27][%emt 00:00:02]} 
3.Bc4 {[%clk 01:41:29][%emt 00:00:17]} 3...Nf6 {[%clk 01:41:50][%emt 00:00:06]} 
4.d3 {[%clk 01:41:53][%emt 00:00:06]} 4...Bc5 {[%clk 01:42:18][%emt 00:00:03]} 
5.c3 {[%clk 01:42:13][%emt 00:00:10]} 5...d6 {[%clk 01:42:43][%emt 00:00:04]} 
6.Bg5 {[%clk 01:42:37][%emt 00:00:05]} 6...h6 {[%clk 01:43:10][%emt 00:00:04]} 
7.Bh4 {[%clk 01:43:02][%emt 00:00:04]} 7...a6 {[%clk 01:43:37][%emt 00:00:03]} 
8.Nbd2 {[%clk 01:41:12][%emt 00:02:20]} 8...Ba7 {[%clk 01:44:05][%emt 00:00:03]} 
9.O-O {[%clk 01:41:33][%emt 00:00:09]} 9...Qe7 {[%clk 01:44:32][%emt 00:00:03]} 
10.b4 {[%clk 01:41:42][%emt 00:00:21]} 10...g5 {[%clk 01:45:00][%emt 00:00:02]} 
11.Bg3 {[%clk 01:42:07][%emt 00:00:05]} 11...Nh7 {[%clk 01:45:25][%emt
00:00:05]} 12.Bd5 {[%clk 01:42:22][%emt 00:00:15]} 12...Nf8 {[%clk
01:45:36][%emt 00:00:19]} 13.Nc4 {[%clk 01:42:42][%emt 00:00:10]} 13...Ng6 
{[%clk 01:37:14][%emt 00:08:53]} 14.Ne3 {[%clk 01:42:47][%emt 00:00:25]} 
14...Qd8 {[%clk 01:32:40][%emt 00:05:04]} 15.h3 {[%clk 01:26:47][%emt 00:16:30]} 
15...h5 {[%clk 01:18:46][%emt 00:14:24]} 16.Qb3 {[%clk 01:17:54][%emt 00:09:23]} 
16...O-O {[%clk 01:00:03][%emt 00:19:13]} 17.a4 {[%clk 01:10:07][%emt 00:08:18]} 
17...g4 {[%clk 00:48:34][%emt 00:11:59]} 18.hxg4 {[%clk 01:10:32][%emt
00:00:04]} 18...hxg4 {[%clk 00:49:00][%emt 00:00:04]} 19.Nh2 {[%clk
01:10:49][%emt 00:00:13]} 19...Qg5 {[%clk 00:49:21][%emt 00:00:09]} 20.b5 
{[%clk 00:58:25][%emt 00:12:53]} 20...Na5 {[%clk 00:47:12][%emt 00:02:40]} ( 
20...Nf4 21.bxc6 Ne2+ 22.Kh1 bxc6 ) 21.Qc2 {[%clk 00:57:45][%emt 00:01:10]} 
21...Bxe3 {[%clk 00:33:42][%emt 00:14:00]} 22.fxe3 {[%clk 00:58:05][%emt
00:00:11]} 22...Qxe3+ {[%clk 00:34:11][%emt 00:00:01]} 23.Qf2 {[%clk
00:57:51][%emt 00:00:43]} 23...Qxf2+ {[%clk 00:31:50][%emt 00:02:51]} 24.Rxf2 
{[%clk 00:58:13][%emt 00:00:08]} 24...Kg7 {[%clk 00:27:06][%emt 00:05:14]} 
25.d4 {[%clk 00:50:36][%emt 00:08:07]} 25...Bd7 {[%clk 00:24:48][%emt 00:02:48]} 
26.Nf1 {[%clk 00:44:06][%emt 00:07:00]} 26...axb5 {[%clk 00:15:19][%emt
00:10:00]} 27.axb5 {[%clk 00:44:22][%emt 00:00:14]} 27...c6 {[%clk
00:15:33][%emt 00:00:15]} 28.bxc6 {[%clk 00:44:02][%emt 00:00:50]} 28...bxc6 
{[%clk 00:15:23][%emt 00:00:40]} 29.Ba2 {[%clk 00:41:36][%emt 00:02:56]} 
29...Nb7 {[%clk 00:10:58][%emt 00:04:56]} 30.Rb1 {[%clk 00:33:00][%emt
00:09:06]} 30...Nd8 {[%clk 00:10:04][%emt 00:01:24]} 31.Ne3 {[%clk
00:32:50][%emt 00:00:40]} 31...Ra3 {[%clk 00:08:19][%emt 00:02:15]} 32.Rb3 
{[%clk 00:28:27][%emt 00:04:53]} 32...Rxb3 {[%clk 00:04:30][%emt 00:04:19]} 
33.Bxb3 {[%clk 00:28:53][%emt 00:00:04]} 33...Be6 {[%clk 00:02:46][%emt
00:02:14]} 34.Nf5+ {[%clk 00:19:38][%emt 00:09:44]} 34...Bxf5 {[%clk
00:02:49][%emt 00:00:28]} 35.exf5 {[%clk 00:20:04][%emt 00:00:04]} 35...Nf4 
{[%clk 00:03:13][%emt 00:00:06]} 36.dxe5 {[%clk 00:17:47][%emt 00:02:47]} 
36...dxe5 {[%clk 00:03:38][%emt 00:00:05]} 37.Bxf4 {[%clk 00:18:13][%emt
00:00:03]} 37...exf4 {[%clk 00:04:00][%emt 00:00:08]} 38.Rxf4 {[%clk
00:18:41][%emt 00:00:02]} 38...Kf6 {[%clk 00:04:24][%emt 00:00:07]} 39.Kf2 
{[%clk 00:18:16][%emt 00:00:54]} 39...Nb7 {[%clk 00:00:56][%emt 00:03:58]} 
40.Rxg4 {[%clk 00:18:21][%emt 00:00:25]} 40...Kxf5 {[%clk 00:00:34][%emt
00:00:52]} 41.Rc4 {[%clk 00:18:08][%emt 00:00:43]} 41...Rc8 {[%clk
00:00:32][%emt 00:00:32]} 42.Kf3 {[%clk 00:16:30][%emt 00:02:08]} 42...Rc7 
{[%clk 00:50:19][%emt 00:00:43]} 43.Rf4+ {[%clk 01:06:05][%emt 00:00:56]} ( 
43.Rf4+ {[%clk 01:06:05] [%emt 00:00:56]} 43...Ke5 {[%emt 00:00:08]} ) 1/2-1/2

[Event "FIDE Grand Swiss 2023"]
[Site "Villa Marina, Douglas, Isle of Man"]
[Date "2023.11.03"]
[Round "9.2"]
[White "Vidit, Santosh Gujrathi"]
[Black "Esipenko, Andrey"]
[Result "1/2-1/2"]
[WhiteElo "2716"]
[BlackElo "2683"]
[EventDate "2023.10.25"]
[ECO "C84"]
[PlyCount "74"]
[BlackFideId "24175439"]
[TimeControl "40/100 + 20/50 + 15 + 30s/move"]
[WhiteFideId "5029465"]

1.e4 {[%clk 01:40:01][%emt 00:00:51]} 1...e5 {[%clk 01:40:55][%emt 00:00:14]} 
2.Nf3 {[%clk 01:40:13][%emt 00:00:17]} 2...Nc6 {[%clk 01:41:19][%emt 00:00:07]} 
3.Bb5 {[%clk 01:40:28][%emt 00:00:15]} 3...a6 {[%clk 01:41:29][%emt 00:00:20]} 
4.Ba4 {[%clk 01:40:49][%emt 00:00:09]} 4...Nf6 {[%clk 01:41:45][%emt 00:00:14]} 
5.O-O {[%clk 01:40:54][%emt 00:00:25]} 5...Be7 {[%clk 01:42:05][%emt 00:00:10]} 
6.d3 {[%clk 01:41:01][%emt 00:00:24]} 6...b5 {[%clk 01:42:28][%emt 00:00:07]} 
7.Bb3 {[%clk 01:41:26][%emt 00:00:05]} 7...d6 {[%clk 01:42:49][%emt 00:00:08]} 
8.a3 {[%clk 01:41:34][%emt 00:00:23]} 8...O-O {[%clk 01:36:50][%emt 00:06:28]} 
9.Nc3 {[%clk 01:41:38][%emt 00:00:26]} 9...Na5 {[%clk 01:37:08][%emt 00:00:13]} 
10.Ba2 {[%clk 01:41:56][%emt 00:00:12]} 10...Be6 {[%clk 01:37:28][%emt
00:00:09]} 11.b4 {[%clk 01:41:38][%emt 00:00:48]} 11...Bxa2 {[%clk
01:37:51][%emt 00:00:08]} 12.Rxa2 {[%clk 01:41:37][%emt 00:00:30]} 12...Nc6 
{[%clk 01:38:15][%emt 00:00:06]} 13.Bg5 {[%clk 01:36:10][%emt 00:05:57]} 
13...Ng4 {[%clk 01:38:09][%emt 00:00:35]} 14.Bd2 {[%clk 01:36:04][%emt
00:00:36]} 14...Nf6 {[%clk 01:38:31][%emt 00:00:08]} 15.Re1 {[%clk
01:34:19][%emt 00:02:15]} 15...Qd7 {[%clk 01:37:47][%emt 00:01:14]} 16.Qa1 
{[%clk 01:33:52][%emt 00:00:57]} 16...Rab8 {[%clk 00:45:14][%emt 00:53:04]} 
17.Qb2 {[%clk 01:33:25][%emt 00:00:56]} 17...Bd8 {[%clk 00:35:36][%emt
00:10:08]} 18.h3 {[%clk 01:09:13][%emt 00:24:42]} 18...h6 {[%clk 00:35:46][%emt
00:00:20]} 19.Qb3 {[%clk 01:08:33][%emt 00:01:10]} 19...a5 {[%clk 00:33:32][%emt
00:02:44]} 20.bxa5 {[%clk 01:06:43][%emt 00:02:20]} 20...Nxa5 {[%clk
00:33:29][%emt 00:00:33]} 21.Qb1 {[%clk 01:07:00][%emt 00:00:12]} 21...c6 
{[%clk 00:33:00][%emt 00:00:58]} 22.Rb2 {[%clk 01:06:29][%emt 00:01:03]} 
22...Ra8 {[%clk 00:32:08][%emt 00:01:21]} 23.a4 {[%clk 00:58:06][%emt 00:08:54]} 
23...bxa4 {[%clk 00:30:47][%emt 00:01:52]} 24.Rb4 {[%clk 00:55:46][%emt
00:02:50]} 24...Bc7 {[%clk 00:21:33][%emt 00:09:43]} 25.Rxa4 {[%clk
00:53:00][%emt 00:03:16]} 25...Rab8 {[%clk 00:21:50][%emt 00:00:12]} 26.Qa2 
{[%clk 00:48:45][%emt 00:04:47]} 26...Nb7 {[%clk 00:22:04][%emt 00:00:15]} 
27.Rb1 {[%clk 00:47:06][%emt 00:02:08]} 27...Nc5 {[%clk 00:20:31][%emt
00:02:03]} 28.Ra7 {[%clk 00:41:43][%emt 00:05:53]} 28...Qd8 {[%clk
00:16:42][%emt 00:04:18]} 29.Na4 {[%clk 00:28:41][%emt 00:13:34]} 29...Ne6 
{[%clk 00:14:49][%emt 00:02:23]} 30.Re1 {[%clk 00:22:47][%emt 00:06:23]} 
30...Ra8 {[%clk 00:13:49][%emt 00:01:30]} 31.Nb2 {[%clk 00:22:25][%emt
00:00:51]} 31...Rxa7 {[%clk 00:11:35][%emt 00:02:46]} 32.Qxa7 {[%clk
00:22:53][%emt 00:00:03]} 32...Qa8 {[%clk 00:11:20][%emt 00:00:43]} 33.Ra1 
{[%clk 00:18:54][%emt 00:04:29]} 33...Qxa7 {[%clk 00:11:07][%emt 00:00:44]} 
34.Rxa7 {[%clk 00:19:17][%emt 00:00:07]} 34...d5 {[%clk 00:11:25][%emt
00:00:12]} 35.Ba5 {[%clk 00:14:33][%emt 00:05:14]} 35...Bxa5 {[%clk
00:10:00][%emt 00:01:54]} 36.Rxa5 {[%clk 00:15:01][%emt 00:00:02]} 36...Rb8 
{[%clk 00:09:41][%emt 00:00:48]} 37.Ra2 {[%clk 00:13:19][%emt 00:02:13]} 
37...Nd7 {[%clk 00:07:53][%emt 00:02:17]} 1/2-1/2